fUSD/lending_fUSD_20260121
["ID","MTS","AMOUNT","RATE_DAILY","PERIOD"]
[402939279,1768999844315,-617.64963419,0.00018521,2]
[402939280,1768999844324,-1000.0,0.00018521,2]
[402939281,1768999844610,-1000.0,0.00018521,2]
[402939282,1768999844623,-1000.0,0.00018521,2]
[402939283,1768999844633,-1000.0,0.00018521,2]
[402939284,1768999844642,-150.99,0.00018533,2]
[402939285,1768999844652,-9999.99,0.00018533,2]
[402939286,1768999844661,-8739.71,0.00018533,2]
[402939287,1768999844670,-9999.99,0.00018533,2]
[402939288,1768999844679,-4361.12,0.00018533,2]
[402939289,1768999844689,-5888.0,0.00018535,2]
[402939290,1768999844699,-4426.0,0.00018576,2]
[402939291,1768999844708,-443.0,0.00018583,2]
[402939292,1768999844721,-713.86,0.00018614,2]
[402939293,1768999844730,-443.0,0.00018655,2]
[402939294,1768999844739,-897.91836186,0.00018689,2]
[402939295,1768999844748,-5098.0,0.00018751,2]
[402939296,1768999844757,-5098.0,0.00018777,2]
[402939297,1768999844766,-152.83,0.000188,2]
[402939298,1768999844775,-5503.0,0.00018817,2]
[402939299,1768999844784,-5098.0,0.00018854,2]
[402939300,1768999844793,-200.0,0.00018856,2]
[402939301,1768999844802,-166.47,0.0001887,2]
[402939302,1768999844812,-271.42010944,0.000189,2]
[402939303,1768999844821,-166.76,0.00018912,2]
[402939304,1768999844830,-5098.0,0.00018944,2]
[402939305,1768999844839,-2500.0,0.00018964,2]
[402939306,1768999844848,-202.22,0.00018972,2]
[402939307,1768999844857,-152.65967576,0.00019,2]
[402939308,1768999844867,-233.85968118,0.00019,2]
[402939309,1768999844876,-443.0,0.00019025,2]
[402939310,1768999844885,-995.28,0.00019049,2]
[402939311,1768999844894,-1203.89002219,0.00019068,2]
[402939312,1768999844902,-1500.0,0.00019068,2]
[402939313,1768999844911,-1002.38199886,0.00019068,2]
[402939314,1768999844920,-500.0,0.00019068,2]
[402939315,1768999844929,-1500.0,0.00019068,2]
[402939316,1768999844939,-1500.0,0.00019068,2]
[402939317,1768999844949,-822.92976016,0.00019068,2]
[402939318,1768999844958,-152.56,0.0001907,2]
[402939319,1768999844967,-200.0,0.00019082,2]
[402939320,1768999844977,-200.0,0.00019095,2]
[402939321,1768999844986,-8444.0,0.000191,2]
[402939322,1768999844996,-150.00024902,0.00019103,6]
[402939323,1768999845005,-500.0,0.00019178,2]
[402939324,1768999845015,-162.05896944,0.00019178,2]
[402939325,1768999845025,-500.0,0.00019178,2]
[402939326,1768999845035,-500.0,0.00019178,2]
[402939327,1768999845044,-3007.27979112,0.00019178,2]
[402939328,1768999845053,-151.59,0.00019178,30]
[402939329,1768999845062,-332.2,0.00019193,2]
[402939330,1768999845071,-200.0,0.00019386,2]
[402939331,1768999845080,-1000.0,0.00019495,2]
[402939332,1768999845090,-5533.0,0.000195,3]
[402939333,1768999845099,-267.79728294,0.00019512,2]
[402939334,1768999845118,-200.0,0.00019525,2]
[402939335,1768999845129,-158.65816026,0.00019595,2]
[402939336,1768999845139,-500.0,0.00019616,2]
[402939337,1768999845148,-1500.0,0.00019616,2]
[402939338,1768999845158,-1264.0,0.00019696,2]
[402939339,1768999845167,-511.0,0.000197,2]
[402939340,1768999845177,-346.92554585,0.00019719,2]
[402939341,1768999845187,-2567.0,0.0001972,2]
[402939342,1768999845197,-502.0,0.00019781,2]
[402939343,1768999845207,-166.47,0.00019806,2]
[402939344,1768999845216,-166.76,0.00019849,2]
[402939345,1768999845226,-5533.0,0.000199,5]
[402939346,1768999845235,-2351.0,0.00019923,2]
[402939347,1768999845245,-37816.30740818,0.0002,14]
[402939348,1768999845255,-8928.81275055,0.0002,2]
[402939349,1768999845264,-15300.0,0.0002,10]
[402939350,1768999845273,-1000.0,0.0002,7]
[402939351,1768999845283,-202.22,0.00020154,2]
[402939352,1768999845293,-152.56,0.00020192,2]
[402939353,1768999845303,-937.728,0.00020197,2]
[402939354,1768999845312,-615.0,0.00020197,2]
[402939355,1768999845322,-1411.112,0.00020197,2]
[402939356,1768999845331,-1332.0,0.00020197,2]
[402939357,1768999845341,-394.0,0.00020197,2]
[402939358,1768999845350,-1268.0,0.00020197,2]
[402939359,1768999845360,-6564.0,0.00020197,2]
[402939360,1768999845369,-701.351,0.00020197,2]
[402939361,1768999845379,-4827.0,0.00020197,2]
[402939362,1768999845388,-329.03,0.00020207,2]
[402939363,1768999845397,-150.00024902,0.00020364,12]
[402939364,1768999845409,-315.41,0.000204,7]
[402939365,1768999845418,-158.65816026,0.00020411,2]
[402939366,1768999845428,-221.47,0.00020472,2]
[402939367,1768999845438,-500.0,0.00020548,2]
[402939368,1768999845447,-204.19,0.00020594,2]
[402939369,1768999845456,-761.94,0.00020807,2]
[402939370,1768999845466,-221.47,0.00020945,2]
[402939371,1768999845475,-761.54,0.00021081,2]
[402939372,1768999845484,-359.76179104,0.00021088,2]
[402939373,1768999845494,-151.0,0.00021204,2]
[402939374,1768999845509,-300.0,0.00021206,2]
[402939375,1768999845519,-666.0,0.00021206,2]
[402939376,1768999845530,-300.0,0.00021206,2]
[402939377,1768999845540,-300.0,0.00021206,2]
[402939378,1768999845550,-300.0,0.00021206,2]
[402939379,1768999845559,-666.0,0.00021206,2]
[402939380,1768999845568,-55315.3291438,0.00021207,2]
[402939395,1768999846242,-4660.64649803,0.000179,2]
[402939396,1768999846251,-867.46914152,0.00020197,2]
[402939397,1768999846304,-1707.82085848,0.00020197,2]
[402939398,1768999846314,-9470.17829256,0.00021207,2]
[402939399,1768999846415,-1537.71246,0.00021207,2]
[402939400,1768999846492,-3089.95645677,0.00021207,2]
[402939420,1769000227786,-1200.0,0.00016572,2]
[402939421,1769000227820,-250.0,0.00016573,2]
[402939422,1769000227851,-2494.21995099,0.00016573,2]
[402939423,1769000228084,-1703.15782037,0.00016573,2]
[402939424,1769000228232,-3406.31564074,0.00016573,2]
[402939425,1769000228337,-3187.37871852,0.00016573,2]
[402939426,1769000228366,-250.0,0.00016631,2]
[402939427,1769000228403,-579.05272199,0.00016631,2]
[402939428,1769000228435,-241.57518764,0.00016669,2]
[402939429,1769000228469,-500.0,0.00016669,2]
[402939430,1769000228651,-500.0,0.00016669,2]
[402939431,1769000228684,-500.0,0.00016669,2]
[402939432,1769000228717,-439.83369619,0.00016669,2]
[402939433,1769000228746,-550.0,0.00016669,2]
[402939434,1769000266226,1736.77311426,0.00016631,2]
[402939435,1769000316911,386.035148,0.00016621,2]
[402939436,1769000331797,296.10003096,0.00016621,2]
[402939437,1769000341312,300.0,0.00016669,2]
[402939438,1769000401306,300.0,0.00016669,2]
[402939439,1769000401572,1200.0,0.00016669,2]
[402939440,1769000402576,302.0,0.00016669,2]
[402939441,1769000404149,1499.4343144,0.0001666,2]
[402939442,1769000404175,10000.01,0.0001666,2]
[402939443,1769000404200,94.4456856,0.0001666,2]
[402939444,1769000404366,9905.5643144,0.0001666,2]
[402939445,1769000404391,1688.3256856,0.0001666,2]
[402939446,1769000405624,165.16,0.0001666,2]
[402939447,1769000427044,2500.0,0.0001657,2]
[402939448,1769000441679,3179.0,0.0001,2]
[402939449,1769000457179,257.35676534,0.00016621,2]
[402939450,1769000461665,300.0,0.00016669,2]
[402939451,1769000461995,1519.67647496,0.00016621,2]
[402939452,1769000468750,174.04894204,0.00016669,2]
[402939453,1769000468780,562.47794103,0.00016669,2]
[402939454,1769000468820,467.05533514,0.00016669,2]
[402939455,1769000468850,331.52185008,0.00016669,2]
[402939456,1769000468883,422.05339292,0.00016669,2]
[402939457,1769000468912,500.0,0.00016669,2]
[402939458,1769000468995,500.0,0.00016669,2]
[402939459,1769000469025,500.0,0.00016669,2]
[402939460,1769000469081,484.50621231,0.00016669,2]
[402939461,1769000469227,500.0,0.00016669,2]
[402939462,1769000492654,2274.988,0.00016336,2]
[402939463,1769000492682,226.441,0.00016336,2]
[402939464,1769000526222,7467.16696164,0.00016621,2]
[402939465,1769000527459,503.40807885,0.0001666,2]
[402939466,1769000555327,-9760.01,0.0001667,2]
[402939467,1769000555435,-10000.01,0.0001667,2]
[402939468,1769000557645,-10000.01,0.0001667,2]
[402939469,1769000557808,-10000.01,0.0001667,2]
[402939470,1769000557932,-10000.01,0.0001667,2]
[402939471,1769000560622,-10000.01,0.0001667,2]
[402939472,1769000560758,-10000.01,0.0001667,2]
[402939473,1769000564031,-10000.01,0.0001667,2]
[402939474,1769000564543,-10000.01,0.0001667,2]
[402939475,1769000566908,-10000.01,0.0001667,2]
[402939476,1769000566923,-10000.01,0.0001667,2]
[402939477,1769000569782,-10000.01,0.0001667,2]
[402939478,1769000569902,-10000.01,0.0001667,2]
[402939479,1769000573051,-10000.01,0.0001667,2]
[402939480,1769000575852,-10000.01,0.0001667,2]
[402939481,1769000578980,-2500.0,0.0001657,2]
[402939482,1769000579008,-2244.79795581,0.00016621,2]
[402939483,1769000579056,-510.41408838,0.0001667,2]
[402939484,1769000582049,-300.0,0.00016669,2]
[402939485,1769000582087,-9400.01,0.0001667,2]
[402939486,1769000585227,-10000.01,0.0001667,2]
[402939487,1769000588081,-10000.01,0.0001667,2]
[402939488,1769000594336,-150.0,0.00016669,2]
[402939489,1769000594392,-9700.01,0.0001667,2]
[402939490,1769000597202,-10000.01,0.0001667,2]
[402939491,1769000603336,-171.57117688,0.00016621,2]
[402939492,1769000603373,-9656.86764624,0.0001667,2]
[402939493,1769000609469,-10000.01,0.0001667,2]
[402939494,1769000613358,172.0,6.2e-07,2]
[402939495,1769000615459,-10000.01,0.0001667,2]
[402939496,1769000653942,1329.71691559,0.00016621,2]
[402939497,1769000701334,1200.0,0.00016669,2]
[402939498,1769000799085,500.0,0.0001657,2]
[402939499,1769000824236,-14005.913513,0.00042995,120]
[402939500,1769000824315,-4065.03149845,0.00042995,120]
[402939501,1769000824399,-1349.63719601,0.00042995,120]
[402939502,1769000824478,-1000.0,0.00042995,120]
[402939503,1769000824556,-531.12899245,0.00042995,120]
[402939504,1769000824631,-509614.54897247,0.00042995,30]
[402939505,1769000824706,-151.37630148,0.00042995,30]
[402939506,1769000824781,-521.12278298,0.00042995,120]
[402939507,1769000824855,-450.5206882,0.00042995,120]
[402939508,1769000824932,-463.68260252,0.00042995,120]
[402939509,1769000825010,-150.0,0.00042995,30]
[402939510,1769000825088,-627.52290504,0.00042995,120]
[402939511,1769000825165,-505.3038812,0.00042995,120]
[402939512,1769000825241,-500.0,0.00042995,120]
[402939513,1769000825318,-500.0,0.00042995,120]
[402939514,1769000825394,-500.0,0.00042995,120]
[402939515,1769000825470,-500.0,0.00042995,120]
[402939516,1769000825552,-518.09622017,0.00042995,120]
[402939517,1769000825630,-500.0,0.00042995,120]
[402939518,1769000825707,-500.0,0.00042995,120]
[402939519,1769000825781,-533.67761244,0.00042995,120]
[402939520,1769000825856,-541.77213606,0.00042995,120]
[402939521,1769000825933,-500.0,0.00042995,120]
[402939522,1769000826007,-332.20149518,0.00042995,120]
[402939523,1769000826084,-530.44210247,0.00042995,120]
[402939524,1769000826158,-500.0,0.00042995,120]
[402939525,1769000826239,-500.0,0.00042995,120]
[402939526,1769000826316,-500.0,0.00042995,120]
[402939527,1769000826392,-642.43301376,0.00042995,120]
[402939528,1769000826468,-500.0,0.00042995,120]
[402939529,1769000826543,-500.0,0.00042995,120]
[402939530,1769000826619,-500.0,0.00042995,120]
[402939531,1769000826693,-500.0,0.00042995,120]
[402939532,1769000826768,-500.0,0.00042995,120]
[402939533,1769000826842,-500.0,0.00042995,120]
[402939534,1769000826918,-522.07745827,0.00042995,120]
[402939535,1769000826994,-500.0,0.00042995,120]
[402939536,1769000827070,-500.0,0.00042995,120]
[402939537,1769000827147,-354.61088621,0.00042995,120]
[402939538,1769000827223,-496.3458109,0.00042995,120]
[402939539,1769000827305,-500.0,0.00042995,120]
[402939540,1769000827382,-503.00061126,0.00042995,120]
[402939541,1769000827461,-500.0,0.00042995,120]
[402939542,1769000827538,-500.0,0.00042995,120]
[402939543,1769000827884,-500.0,0.00042995,120]
[402939544,1769000827964,-500.0,0.00042995,120]
[402939545,1769000828055,-500.0,0.00042995,120]
[402939548,1769000828132,-506.7297603,0.00042995,120]
[402939550,1769000828210,-500.0,0.00042995,120]
[402939551,1769000828288,-500.0,0.00042995,120]
[402939552,1769000828366,-500.0,0.00042995,120]
[402939553,1769000828451,-500.0,0.00042995,120]
[402939554,1769000828536,-500.0,0.00042995,120]
[402939555,1769000828613,-500.0,0.00042995,120]
[402939556,1769000828690,-500.0,0.00042995,120]
[402939557,1769000828766,-501.56516814,0.00042995,120]
[402939558,1769000828841,-500.0,0.00042995,120]
[402939559,1769000828930,-500.0,0.00042995,120]
[402939560,1769000829021,-500.0,0.00042995,120]
[402939561,1769000829098,-500.0,0.00042995,120]
[402939562,1769000829190,-500.0,0.00042995,120]
[402939563,1769000829268,-500.0,0.00042995,120]
[402939564,1769000829346,-500.0,0.00042995,120]
[402939565,1769000829424,-500.0,0.00042995,120]
[402939566,1769000829499,-500.0,0.00042995,120]
[402939567,1769000829574,-501.22671266,0.00042995,120]
[402939568,1769000829650,-626.12,0.00042995,120]
[402939569,1769000829725,-3000.0,0.00042995,30]
[402939570,1769000829798,-500.0,0.00042995,120]
[402939571,1769000829871,-500.0,0.00042995,120]
[402939572,1769000829945,-500.0,0.00042995,120]
[402939573,1769000830023,-233.46,0.00042995,120]
[402939574,1769000830096,-500.0,0.00042995,120]
[402939575,1769000830174,-500.0,0.00042995,120]
[402939576,1769000830254,-500.0,0.00042995,120]
[402939577,1769000830329,-500.98926065,0.00042995,120]
[402939578,1769000830406,-511.58237569,0.00042995,120]
[402939579,1769000830482,-505.83968277,0.00042995,120]
[402939580,1769000830559,-500.0,0.00042995,120]
[402939581,1769000830633,-502.2116082,0.00042995,120]
[402939582,1769000830708,-630.28118199,0.00042995,120]
[402939583,1769000830783,-500.0,0.00042995,120]
[402939584,1769000830858,-500.0,0.00042995,120]
[402939585,1769000830934,-500.0,0.00042995,120]
[402939586,1769000831008,-500.0,0.00042995,120]
[402939587,1769000831085,-503.47912862,0.00042995,120]
[402939588,1769000831160,-502.95608044,0.00042995,120]
[402939589,1769000831235,-500.0,0.00042995,120]
[402939590,1769000831310,-520.26056758,0.00042995,120]
[402939591,1769000831385,-500.0,0.00042995,120]
[402939592,1769000831459,-500.0,0.00042995,120]
[402939593,1769000831536,-500.0,0.00042995,120]
[402939594,1769000831612,-500.0,0.00042995,120]
[402939595,1769000831688,-548.02284287,0.00042995,120]
[402939596,1769000831763,-500.0,0.00042995,120]
[402939597,1769000831838,-500.0,0.00042995,120]
[402939598,1769000831914,-500.0,0.00042995,120]
[402939599,1769000831988,-500.78532908,0.00042995,120]
[402939600,1769000832065,-500.0,0.00042995,120]
[402939601,1769000832148,-509.34552302,0.00042995,120]
[402939602,1769000832227,-500.0,0.00042995,120]
[402939603,1769000832305,-500.0,0.00042995,120]
[402939604,1769000832386,-500.0,0.00042995,120]
[402939605,1769000832463,-638.72570419,0.00042995,120]
[402939606,1769000832539,-502.96322378,0.00042995,120]
[402939607,1769000832617,-503.04907046,0.00042995,120]
[402939608,1769000832692,-500.0,0.00042995,120]
[402939609,1769000832766,-500.0,0.00042995,120]
[402939610,1769000832838,-589.16041383,0.00042995,120]
[402939611,1769000832911,-564.7285668,0.00042995,120]
[402939612,1769000832989,-500.0,0.00042995,120]
[402939613,1769000833063,-500.0,0.00042995,120]
[402939614,1769000833140,-471.28585763,0.00042995,120]
[402939615,1769000833217,-502.98545349,0.00042995,120]
[402939616,1769000833292,-519.52195773,0.00042995,120]
[402939617,1769000833371,-570.18358542,0.00042995,120]
[402939618,1769000833447,-500.0,0.00042995,120]
[402939619,1769000833523,-515.68691586,0.00042995,120]
[402939620,1769000833598,-500.0,0.00042995,120]
[402939621,1769000833672,-502.92541846,0.00042995,120]
[402939622,1769000833744,-502.86457851,0.00042995,120]
[402939623,1769000833817,-500.0,0.00042995,120]
[402939624,1769000833890,-500.0,0.00042995,120]
[402939625,1769000833965,-500.0,0.00042995,120]
[402939626,1769000834043,-500.0,0.00042995,120]
[402939627,1769000834119,-500.0,0.00042995,120]
[402939628,1769000834196,-591.85821101,0.00042995,120]
[402939629,1769000834272,-500.0,0.00042995,120]
[402939630,1769000834347,-500.0,0.00042995,120]
[402939631,1769000834421,-500.0,0.00042995,120]
[402939632,1769000834502,-304.31052001,0.00042995,120]
[402939633,1769000834577,-500.0,0.00042995,120]
[402939634,1769000834651,-501.36808558,0.00042995,120]
[402939635,1769000834725,-500.0,0.00042995,120]
[402939636,1769000834799,-500.0,0.00042995,120]
[402939637,1769000834875,-500.0,0.00042995,120]
[402939638,1769000834951,-500.0,0.00042995,120]
[402939639,1769000835028,-500.0,0.00042995,120]
[402939640,1769000835105,-500.0,0.00042995,120]
[402939641,1769000835350,-500.0,0.00042995,120]
[402939642,1769000835428,-500.0,0.00042995,120]
[402939643,1769000835506,-500.0,0.00042995,120]
[402939644,1769000835584,-500.0,0.00042995,120]
[402939645,1769000835661,-500.0,0.00042995,120]
[402939646,1769000835737,-500.0,0.00042995,120]
[402939647,1769000835810,-500.0,0.00042995,120]
[402939648,1769000835886,-500.0,0.00042995,120]
[402939649,1769000835962,-500.0,0.00042995,120]
[402939650,1769000836051,-500.0,0.00042995,120]
[402939651,1769000836128,-500.0,0.00042995,120]
[402939652,1769000836204,-500.0,0.00042995,120]
[402939653,1769000836279,-500.0,0.00042995,120]
[402939654,1769000836354,-500.0,0.00042995,120]
[402939655,1769000836432,-500.0,0.00042995,120]
[402939656,1769000836515,-500.0,0.00042995,120]
[402939657,1769000836592,-151.49558731,0.00042995,120]
[402939658,1769000836665,-500.0,0.00042995,120]
[402939659,1769000836734,-500.0,0.00042995,120]
[402939660,1769000836805,-500.0,0.00042995,120]
[402939661,1769000836878,-500.0,0.00042995,120]
[402939662,1769000836951,-500.0,0.00042995,120]
[402939663,1769000837025,-500.0,0.00042995,120]
[402939664,1769000837100,-402.57203795,0.00042995,120]
[402939665,1769000837175,-1735.42,0.00042995,120]
[402939666,1769000837250,-1735.42,0.00042995,120]
[402939667,1769000837329,-1735.42,0.00042995,120]
[402939668,1769000837425,-1735.42,0.00042995,120]
[402939669,1769000837502,-1735.42,0.00042995,120]
[402939670,1769000837579,-1735.42,0.00042995,120]
[402939671,1769000837653,-500.0,0.00042995,120]
[402939672,1769000837729,-1735.42,0.00042995,120]
[402939673,1769000837805,-611.83,0.00042995,120]
[402939674,1769000837884,-1735.42,0.00042995,120]
[402939675,1769000837961,-1735.42,0.00042995,120]
[402939676,1769000838040,-1735.42,0.00042995,120]
[402939677,1769000838118,-1735.42,0.00042995,120]
[402939678,1769000838198,-1735.42,0.00042995,120]
[402939679,1769000838279,-1735.42,0.00042995,120]
[402939680,1769000838361,-1735.42,0.00042995,120]
[402939681,1769000838448,-1735.42,0.00042995,120]
[402939682,1769000838527,-1735.42,0.00042995,120]
[402939683,1769000838605,-1735.42,0.00042995,120]
[402939684,1769000838682,-1735.42,0.00042995,120]
[402939685,1769000838759,-1735.42,0.00042995,120]
[402939686,1769000838832,-1735.42,0.00042995,120]
[402939687,1769000838905,-1735.42,0.00042995,120]
[402939688,1769000838980,-1735.42,0.00042995,120]
[402939689,1769000839057,-1735.42,0.00042995,120]
[402939690,1769000839133,-1735.52463196,0.00042995,120]
[402939691,1769000839211,-500.0,0.00042995,120]
[402939692,1769000839287,-506.45476694,0.00042995,120]
[402939693,1769000839362,-347.32057763,0.00042995,120]
[402939694,1769000839437,-500.0,0.00042995,120]
[402939695,1769000839510,-500.0,0.00042995,120]
[402939696,1769000839584,-500.0,0.00042995,120]
[402939697,1769000839655,-500.0,0.00042995,120]
[402939698,1769000839727,-500.0,0.00042995,120]
[402939699,1769000839799,-572.16,0.00042995,120]
[402939700,1769000839870,-500.0,0.00042995,120]
[402939701,1769000839946,-545.78,0.00042995,120]
[402939702,1769000840019,-500.0,0.00042995,120]
[402939703,1769000840092,-500.0,0.00042995,120]
[402939704,1769000840173,-500.0,0.00042995,120]
[402939705,1769000840252,-500.0,0.00042995,120]
[402939706,1769000840328,-500.0,0.00042995,120]
[402939707,1769000840401,-500.0,0.00042995,120]
[402939708,1769000840476,-500.0,0.00042995,120]
[402939709,1769000840549,-500.0,0.00042995,120]
[402939710,1769000840620,-500.0,0.00042995,120]
[402939711,1769000840694,-500.0,0.00042995,120]
[402939712,1769000840765,-292.88467625,0.00042995,120]
[402939713,1769000840837,-500.0,0.00042995,120]
[402939714,1769000840912,-500.0,0.00042995,120]
[402939715,1769000840991,-150.91,0.00042995,120]
[402939716,1769000841064,-500.0,0.00042995,120]
[402939717,1769000841136,-500.0,0.00042995,120]
[402939718,1769000841208,-500.0,0.00042995,120]
[402939719,1769000841281,-500.0,0.00042995,120]
[402939720,1769000841354,-500.0,0.00042995,120]
[402939721,1769000841432,-428.85,0.00042995,120]
[402939722,1769000841508,-500.0,0.00042995,120]
[402939723,1769000841580,-500.0,0.00042995,120]
[402939724,1769000841650,-390.9,0.00042995,120]
[402939725,1769000841720,-500.0,0.00042995,120]
[402939726,1769000841791,-500.0,0.00042995,120]
[402939727,1769000841862,-500.0,0.00042995,120]
[402939728,1769000841935,-500.0,0.00042995,120]
[402939729,1769000842007,-500.0,0.00042995,120]
[402939730,1769000842081,-500.0,0.00042995,120]
[402939731,1769000842154,-437.67,0.00042995,120]
[402939732,1769000842226,-500.0,0.00042995,120]
[402939733,1769000842301,-500.0,0.00042995,120]
[402939734,1769000842374,-500.0,0.00042995,120]
[402939735,1769000842613,-500.0,0.00042995,120]
[402939736,1769000842694,-500.0,0.00042995,120]
[402939737,1769000842768,-500.0,0.00042995,120]
[402939738,1769000842839,-500.0,0.00042995,120]
[402939739,1769000842913,-500.0,0.00042995,120]
[402939740,1769000842985,-500.0,0.00042995,120]
[402939741,1769000843059,-500.0,0.00042995,120]
[402939742,1769000843132,-500.0,0.00042995,120]
[402939743,1769000843213,-500.0,0.00042995,120]
[402939744,1769000843290,-500.0,0.00042995,120]
[402939745,1769000843367,-500.0,0.00042995,120]
[402939746,1769000843446,-500.0,0.00042995,120]
[402939747,1769000843519,-500.0,0.00042995,120]
[402939748,1769000843590,-500.0,0.00042995,120]
[402939749,1769000843665,-500.0,0.00042995,120]
[402939750,1769000843743,-500.0,0.00042995,120]
[402939751,1769000843826,-500.0,0.00042995,120]
[402939752,1769000843903,-631.73427095,0.00042995,120]
[402939753,1769000843982,-484.18118342,0.00042995,120]
[402939754,1769000844058,-500.0,0.00042995,120]
[402939755,1769000844133,-500.0,0.00042995,120]
[402939756,1769000844206,-500.0,0.00042995,120]
[402939757,1769000844280,-528.08674473,0.00042995,120]
[402939758,1769000844356,-500.0,0.00042995,120]
[402939759,1769000844432,-500.0,0.00042995,120]
[402939760,1769000844505,-500.0,0.00042995,120]
[402939761,1769000844579,-500.0,0.00042995,120]
[402939762,1769000844650,-500.0,0.00042995,120]
[402939763,1769000844722,-500.0,0.00042995,120]
[402939764,1769000844795,-500.0,0.00042995,120]
[402939765,1769000844866,-500.0,0.00042995,120]
[402939766,1769000844942,-500.0,0.00042995,120]
[402939767,1769000845019,-500.0,0.00042995,120]
[402939768,1769000845092,-500.0,0.00042995,120]
[402939769,1769000845167,-500.0,0.00042995,120]
[402939770,1769000845242,-500.0,0.00042995,120]
[402939771,1769000845318,-500.0,0.00042995,120]
[402939772,1769000845390,-500.0,0.00042995,120]
[402939773,1769000845462,-555.13593866,0.00042995,120]
[402939774,1769000845536,-500.0,0.00042995,120]
[402939775,1769000845609,-500.0,0.00042995,120]
[402939776,1769000845685,-500.0,0.00042995,120]
[402939777,1769000845759,-470.5,0.00042995,120]
[402939778,1769000845829,-500.0,0.00042995,120]
[402939779,1769000845900,-500.0,0.00042995,120]
[402939780,1769000845972,-500.0,0.00042995,120]
[402939781,1769000846047,-514.22826396,0.00042995,120]
[402939782,1769000846119,-500.0,0.00042995,120]
[402939783,1769000846193,-595.11,0.00042995,120]
[402939784,1769000846269,-500.0,0.00042995,120]
[402939785,1769000846341,-500.0,0.00042995,120]
[402939786,1769000846416,-500.0,0.00042995,120]
[402939787,1769000846490,-500.0,0.00042995,120]
[402939788,1769000846564,-500.0,0.00042995,120]
[402939789,1769000846641,-500.0,0.00042995,120]
[402939790,1769000846713,-555.05680533,0.00042995,120]
[402939791,1769000846788,-500.0,0.00042995,120]
[402939792,1769000846864,-500.0,0.00042995,120]
[402939793,1769000846949,-481.11,0.00042995,120]
[402939794,1769000847030,-500.0,0.00042995,120]
[402939795,1769000847109,-500.0,0.00042995,120]
[402939796,1769000847186,-500.0,0.00042995,120]
[402939797,1769000847261,-199.14,0.00042995,120]
[402939798,1769000847337,-500.0,0.00042995,120]
[402939799,1769000847415,-500.0,0.00042995,120]
[402939800,1769000847491,-500.0,0.00042995,120]
[402939801,1769000847567,-500.0,0.00042995,120]
[402939802,1769000847643,-500.0,0.00042995,120]
[402939803,1769000847718,-500.0,0.00042995,120]
[402939804,1769000847794,-599.51,0.00042995,120]
[402939805,1769000847869,-500.0,0.00042995,120]
[402939806,1769000847945,-545.17,0.00042995,120]
[402939807,1769000848021,-500.0,0.00042995,120]
[402939808,1769000848094,-500.0,0.00042995,120]
[402939809,1769000848169,-500.0,0.00042995,120]
[402939810,1769000848244,-647.34,0.00042995,120]
[402939811,1769000848320,-647.34,0.00042995,120]
[402939812,1769000848394,-647.34,0.00042995,120]
[402939813,1769000848472,-647.34,0.00042995,120]
[402939814,1769000848549,-647.34,0.00042995,120]